bitfinex-derivatives/quotes_ETHF0:USTF0_20260209
["timestamp","ask_amount","ask_price","bid_price","bid_amount"]
[1770657576132,11.05893713,2089.9,2088.8,1.63196628]
[1770657576532,11.05893713,2089.9,2089.0,0.23952]
[1770657576735,11.06235365,2089.9,2089.0,0.23952]
[1770657576938,11.06235365,2089.9,2089.0,1.63194628]
[1770657577233,11.06235365,2089.9,2089.1,1.3673391]
[1770657578730,11.06235365,2089.9,2089.3,1.3673391]
[1770657579635,0.00341652,2089.9,2089.3,1.3673391]
[1770657581932,11.05472344,2089.9,2089.3,1.3673391]
[1770657583340,11.05472344,2089.9,2088.8,3.30180767]
[1770657583732,11.05472344,2089.9,2089.0,3.30180767]
[1770657583928,11.05472344,2089.9,2089.2,3.30180767]
[1770657584842,11.05472344,2089.9,2089.1,0.23951]
[1770657585940,11.05472344,2089.9,2089.1,3.53612709]
[1770657586334,11.05472344,2089.9,2089.1,3.53621808]
[1770657587440,11.05472344,2089.9,2089.1,0.23951]
[1770657587637,11.05472344,2089.9,2088.9,3.50855724]
[1770657588440,11.05472344,2089.9,2088.8,0.26557347]
[1770657588635,11.05472344,2089.9,2088.6,3.72419722]
[1770657588841,11.05472344,2089.9,2088.7,3.48463722]
[1770657589348,11.52718687,2089.8,2088.7,3.48463722]
[1770657589545,11.52718687,2089.8,2088.6,0.23956]
[1770657590944,54.20700685,2090.5,2089.5,3.59799028]
[1770657591143,11.52718687,2091.2,2090.4,0.23936]
[1770657591344,11.52718687,2091.2,2090.4,4.24678906]
[1770657591544,11.52718687,2091.2,2090.2,3.98259933]
[1770657591749,11.52718687,2091.2,2090.0,3.98259933]
[1770657592051,11.53231471,2091.2,2090.2,3.98259933]
[1770657592841,5.89126784,2091.2,2089.6,2.77482435]
[1770657593146,11.52718687,2090.7,2088.7,4.15533877]
[1770657593350,11.52718687,2090.5,2088.8,4.39487877]
[1770657593945,11.52718687,2090.5,2088.8,0.24520438]
[1770657594148,11.52718687,2090.3,2088.8,0.00566438]
[1770657594447,11.52718687,2090.3,2088.4,4.13145852]
[1770657595248,11.52718687,2090.3,2088.4,4.13504535]
[1770657596150,11.52718687,2090.3,2088.5,0.23957]
[1770657596348,11.52718687,2090.3,2088.5,4.22120334]
[1770657596951,11.52718687,2090.1,2088.7,0.23955]
[1770657597152,11.52718687,2090.1,2088.7,4.19695349]
[1770657597656,11.52718687,2090.1,2088.4,0.00358683]
[1770657597857,11.52718687,2089.9,2088.4,0.00358683]
[1770657598247,11.52718687,2089.7,2088.4,0.00358683]
[1770657598451,11.53289573,2089.7,2088.2,0.23961]
[1770657598646,11.53289573,2089.7,2088.2,3.56591779]
[1770657599357,11.53289573,2089.7,2088.2,3.567226]
[1770657599553,11.53289573,2089.7,2088.2,0.24091821]
[1770657600653,11.52718687,2089.5,2087.7,0.23966]
[1770657600959,11.52718687,2089.5,2088.2,3.32246312]
[1770657601353,11.52718687,2089.5,2088.1,0.23962]
[1770657602259,11.52718687,2089.5,2087.9,3.28122665]
[1770657602456,11.52718687,2089.3,2088.1,0.23962]
[1770657603257,11.52718687,2089.3,2088.1,3.49858706]
[1770657605452,11.52718687,2089.3,2088.1,0.23962]
[1770657605963,11.52718687,2089.3,2087.7,2.75055537]
[1770657606465,11.52718687,2089.1,2087.6,0.23968]
[1770657606655,11.52718687,2088.9,2087.6,0.23968]
[1770657607061,11.52718687,2088.9,2087.6,2.70799576]
[1770657607264,11.52718687,2088.9,2087.7,1.71329275]
[1770657607464,11.52718687,2088.9,2087.9,1.68978651]
[1770657607660,11.52718687,2088.9,2087.8,0.23965]
[1770657612464,11.52718687,2088.9,2087.8,1.9903452]
[1770657623285,11.52718687,2088.9,2087.8,0.23965]
[1770657623984,11.52718687,2088.9,2087.8,1.65303039]
[1770657625078,11.52718687,2088.9,2087.8,0.23965]
[1770657625483,11.52718687,2088.9,2087.8,1.25687085]
[1770657630391,11.52718687,2088.9,2087.9,0.95663638]
[1770657633596,11.52718687,2088.9,2088.0,0.23963]
[1770657633795,11.52718687,2088.9,2088.1,0.99378918]
[1770657634190,11.52718687,2088.9,2088.3,0.9961008]
[1770657634689,11.52718687,2088.9,2088.0,2.75488728]
[1770657634894,11.52718687,2088.9,2088.1,0.97447561]
[1770657635490,11.52718687,2088.9,2088.0,1.01840433]
[1770657635691,11.52718687,2088.9,2088.0,5.22613801]
[1770657636098,11.52718687,2088.9,2088.0,1.01840433]
[1770657636296,11.52718687,2088.9,2088.0,5.22613768]
[1770657636996,11.52718687,2088.9,2088.0,1.01840433]
[1770657637897,11.52718687,2088.9,2087.9,6.96107892]
[1770657638090,11.52718687,2088.9,2087.7,2.99454728]
[1770657638288,11.52718687,2088.9,2087.8,4.20701918]
[1770657638887,11.52718687,2088.9,2087.7,2.99454728]
[1770657639601,11.52718687,2088.9,2087.7,4.01895901]
[1770657640198,11.52718687,2088.9,2087.8,4.19984449]
[1770657640498,11.52718687,2088.9,2087.9,1.00528847]
[1770657640690,11.52718687,2088.9,2088.3,1.00528847]
[1770657641092,11.52718687,2088.9,2088.2,5.57418005]
[1770657641397,11.52718687,2088.9,2088.0,3.8092419]
[1770657641600,11.52718687,2088.9,2088.1,4.33035634]
[1770657641993,11.52718687,2088.9,2088.2,1.03314925]
[1770657642393,11.52718687,2088.9,2088.0,3.76898989]
[1770657642593,11.52718687,2088.9,2088.1,5.34473718]
[1770657642998,11.52718687,2088.9,2088.0,2.75488728]
[1770657643303,11.52718687,2088.9,2088.0,4.33141704]
[1770657644705,14.28140545,2088.9,2087.8,2.71763519]
[1770657644908,14.28140545,2088.9,2087.5,5.57388745]
[1770657644909,10.7077715,2088.7,2087.2,5.21783174]
[1770657645396,11.11840273,2088.5,2087.2,5.21783174]
[1770657648093,11.11840273,2088.5,2087.3,0.23971]
[1770657648305,11.11840273,2088.5,2087.3,5.83003375]
[1770657650509,13.87262131,2088.5,2087.1,5.51150569]
[1770657650805,11.11840273,2088.3,2087.1,5.51150569]
[1770657651507,11.11840273,2088.3,2087.3,5.73675266]
[1770657652505,11.11840273,2088.5,2087.7,0.23967]
[1770657652809,8.4706995,2089.3,2087.7,0.23967]
[1770657652810,11.11840273,2089.1,2087.8,5.47561023]
[1770657653211,11.11840273,2089.1,2088.2,5.47561023]
[1770657655304,11.11840273,2089.1,2087.8,5.75216822]
[1770657655504,11.11840273,2088.6,2087.3,9.87046097]
[1770657655809,11.11840273,2088.4,2087.1,5.97018063]
[1770657658210,40.8,2088.3,2087.1,5.97018063]
[1770657658410,11.11840273,2088.2,2087.1,5.97018063]
[1770657658613,11.12446096,2088.2,2087.1,5.97018063]
[1770657660611,0.00605823,2088.2,2087.6,5.12466159]
[1770657661618,11.12446096,2088.2,2087.6,5.12466159]
[1770657661820,11.12446096,2088.2,2087.5,0.23969]
[1770657662019,11.12446096,2088.2,2087.5,5.4669187]
[1770657662717,0.00605823,2088.2,2087.5,5.4669187]
[1770657663320,11.12446096,2088.2,2087.5,5.4669187]
[1770657663914,11.12446096,2088.2,2087.0,5.39826865]
[1770657666016,11.11840273,2087.8,2086.5,5.51406553]
[1770657667522,11.11840273,2087.6,2086.5,5.51406553]
[1770657668019,11.11840273,2087.6,2086.3,5.54285237]
[1770657668324,11.11840273,2087.6,2086.5,5.54453778]
[1770657668713,11.11840273,2087.6,2086.7,5.52374634]
[1770657669426,11.11840273,2087.6,2086.6,0.23979]
[1770657669720,11.11840273,2087.6,2086.6,5.78296295]
[1770657671819,30.976,2088.1,2087.1,5.58825509]
[1770657671820,11.11840273,2087.9,2087.1,5.58825509]
[1770657673418,11.12446096,2088.2,2087.3,5.51094604]
[1770657674216,11.12446096,2088.2,2087.4,0.2397]
[1770657674418,11.12446096,2088.2,2087.2,5.49209501]
[1770657678025,11.12446096,2088.2,2086.9,0.23975]
[1770657678026,11.36407096,2088.2,2086.8,4.1839955]
[1770657678324,10.82622817,2088.0,2086.8,4.1839955]
[1770657679216,10.82622817,2088.0,2086.8,4.4237655]
[1770657681428,10.82622817,2088.0,2087.3,4.26949028]
[1770657683030,10.82622817,2088.0,2087.2,0.23972]
[1770657683234,10.82622817,2088.0,2087.2,4.53397004]
[1770657684630,0.00605823,2088.2,2087.6,4.25617453]
[1770657685937,0.00605823,2088.2,2087.5,0.23968]
[1770657685938,10.27483586,2088.2,2087.5,4.48499064]
[1770657686138,10.27483586,2088.2,2087.5,0.23968]
[1770657686334,0.00605823,2088.2,2087.5,4.4866095]
[1770657687037,10.27483586,2088.2,2087.5,4.4866095]
[1770657687536,0.00605823,2088.2,2087.5,4.4866095]
[1770657688144,10.27483586,2088.2,2087.5,4.4866095]
[1770657688344,10.27483586,2088.2,2087.3,4.28749557]
[1770657689842,10.27483586,2088.2,2087.1,4.20936676]
[1770657690046,10.51445586,2088.2,2086.6,8.3493771]
[1770657690347,10.51445586,2088.2,2086.6,4.20936676]
[1770657690547,10.26877763,2088.0,2086.6,4.20936676]
[1770657693840,10.26877763,2088.0,2086.5,4.42366088]
[1770657695647,10.26877763,2088.0,2086.9,4.34319326]
[1770657696051,10.26877763,2087.8,2086.9,4.34319326]
[1770657697144,10.26877763,2087.8,2086.9,0.23975]
[1770657697342,10.26877763,2087.8,2086.7,4.08592512]
[1770657698251,10.26877763,2087.8,2086.8,4.26834042]
[1770657700048,10.26877763,2087.8,2086.8,0.23977]
[1770657700249,10.26877763,2087.8,2086.8,4.2774896]
[1770657701051,10.26877763,2087.8,2086.5,4.01886194]
[1770657702458,10.26877763,2087.6,2086.3,4.33755712]
[1770657711357,40.8,2087.9,2086.8,3.83205604]
[1770657711548,10.12930882,2087.9,2087.2,0.23972]
[1770657711748,10.12930882,2088.1,2087.2,4.05358665]
[1770657714255,10.12930882,2088.1,2087.2,3.81386665]
[1770657714955,10.13536705,2088.2,2087.2,3.81386665]
[1770657717557,10.13536705,2088.2,2087.0,4.01355871]
[1770657718861,10.13536705,2088.2,2087.0,4.25329871]
[1770657720362,10.13536705,2088.2,2087.0,3.25329871]
[1770657721753,10.13536705,2088.2,2087.0,0.23974]
[1770657721952,10.13536705,2088.2,2087.0,3.22585471]
[1770657728271,10.13536705,2088.2,2087.1,2.8271761]
[1770657733169,8.23e-06,2088.2,2087.7,2.73231375]
[1770657733363,10.12930882,2088.7,2087.8,0.23965]
[1770657733569,10.12930882,2088.7,2087.5,2.71523242]
[1770657733769,10.12930882,2088.6,2087.5,2.71523242]
[1770657734067,10.12930882,2088.6,2087.4,2.71523242]
[1770657734263,10.13271255,2088.6,2087.4,2.71860447]
[1770657735974,10.13271255,2088.6,2087.0,2.68340126]
[1770657735975,10.4194326,2088.3,2087.0,2.68340126]
[1770657737075,10.4194326,2088.3,2087.0,2.68608745]
[1770657738974,10.4194326,2088.3,2087.2,2.60185429]
[1770657741271,10.4194326,2088.3,2087.3,2.50821724]
[1770657742272,10.4194326,2088.3,2087.2,2.77802751]
[1770657742273,13.17464386,2088.3,2087.2,2.77802751]
[1770657742479,10.05250304,2088.2,2087.0,0.00268619]
[1770657742679,10.05250304,2088.2,2087.0,2.47935682]
[1770657744079,10.05250304,2088.2,2087.1,2.55616475]
[1770657744388,10.05250304,2088.2,2087.2,4.27488109]
[1770657744585,10.05250304,2088.2,2087.0,0.00268619]
[1770657744882,10.05250304,2088.2,2087.0,4.27973379]
[1770657745476,10.05250304,2088.2,2087.2,2.53222093]
[1770657748281,10.05250304,2088.2,2087.1,0.23973]
[1770657748483,10.05250304,2088.2,2087.1,6.81489177]
[1770657748784,10.05250304,2088.2,2087.1,2.54072716]
[1770657751182,10.05250304,2088.2,2087.0,0.00268619]
[1770657751576,10.05250304,2087.8,2086.6,0.23978]
[1770657751776,10.05250304,2087.8,2086.7,4.28299286]
[1770657751980,10.05250304,2087.8,2086.7,6.57254079]
[1770657752684,10.05250304,2087.8,2086.7,2.28954793]
[1770657752883,10.05250304,2087.8,2086.5,2.27522083]
[1770657753184,10.05250304,2087.8,2086.6,2.27522083]
[1770657753486,10.05250304,2087.8,2086.5,4.28354584]
[1770657753487,10.05250304,2087.6,2086.7,2.47587248]
[1770657754691,10.05250304,2087.6,2086.7,1.47587248]
[1770657755294,10.05250304,2087.6,2086.4,1.33368461]
[1770657755482,10.05250304,2087.6,2086.3,0.23983]
[1770657755684,10.05250304,2087.6,2086.5,0.2398]
[1770657755989,10.05250304,2087.6,2086.4,1.38742538]
[1770657757292,10.05250304,2087.6,2086.2,1.64448966]
[1770657757488,10.05250304,2087.6,2086.2,5.92540485]
[1770657757687,10.05250304,2087.6,2086.3,1.35954896]
[1770657757888,10.05250304,2087.6,2086.3,5.64046415]
[1770657758186,10.05250304,2087.5,2086.3,1.35954896]
[1770657760788,10.05250304,2087.1,2085.7,4.14001034]
[1770657760991,10.05250304,2086.7,2085.4,1.11846691]
[1770657761190,10.05250304,2086.5,2085.2,1.11846691]
[1770657761390,10.05250304,2086.3,2085.2,1.11846691]
[1770657763097,10.05250304,2086.3,2085.2,1.38147739]
[1770657763397,10.05250304,2086.3,2085.1,1.21493731]
[1770657767093,10.05250304,2086.3,2085.0,1.44621191]
[1770657768694,10.05250304,2086.3,2085.1,0.23996]
[1770657768895,10.05250304,2086.3,2085.2,1.13626095]
[1770657770002,10.05250304,2086.3,2085.3,0.23994]
[1770657770203,10.05250304,2086.3,2085.4,1.07017914]
[1770657771703,10.05250304,2086.3,2085.0,1.35096397]
[1770657771899,10.05250304,2086.3,2085.0,0.27858344]
[1770657772096,10.05250304,2086.3,2085.0,0.00431066]
[1770657772908,10.05250304,2086.3,2085.0,1.06284626]
[1770657774307,10.05250304,2086.3,2085.0,1.32421344]
[1770657774809,9.93520104,2086.1,2085.1,1.02497035]
[1770657777109,9.93520104,2086.1,2085.0,0.00431066]
[1770657777309,9.93520104,2086.1,2085.0,1.00143423]
[1770657779108,9.93520104,2086.1,2085.2,0.96824373]
[1770657780906,9.93520104,2085.7,2084.3,1.18261953]
[1770657781106,9.93520104,2085.7,2084.0,11.43752148]
[1770657781107,9.93520104,2085.7,2084.6,1.18261953]
[1770657781812,9.93520104,2085.7,2084.6,1.18415561]
[1770657782010,9.93520104,2085.7,2084.7,1.34181848]
[1770657782312,9.93520104,2085.7,2084.8,1.1017899]
[1770657785211,9.93520104,2086.1,2085.1,0.23996]
[1770657785411,9.93520104,2086.1,2085.2,0.91635488]
[1770657786316,9.93520104,2086.1,2085.3,0.23994]
[1770657786617,9.93520104,2086.1,2085.4,0.88819944]
[1770657786817,9.93520104,2086.1,2085.5,0.23992]
[1770657787007,9.93520104,2086.1,2085.0,5.90325]
[1770657787008,9.93520104,2086.1,2085.0,1.12816944]
[1770657787413,9.93520104,2085.9,2085.0,1.12816944]
[1770657790230,9.93520104,2085.9,2084.9,4.19692062]
[1770657790528,9.93520104,2085.9,2084.7,0.83855874]
[1770657790724,9.93520104,2085.9,2084.9,0.82374924]
[1770657791033,9.93520104,2085.9,2085.0,0.82374924]
[1770657791522,9.93520104,2085.9,2085.3,1.01740257]
[1770657791722,9.93520104,2085.9,2085.4,0.77746257]
[1770657792223,9.93520104,2085.9,2085.5,1.01921269]
[1770657793028,9.93520104,2086.5,2085.6,0.76458131]
[1770657793823,9.93520104,2086.5,2085.8,0.74432051]
[1770657794023,9.93520104,2086.5,2085.9,0.23987]
[1770657794727,9.93520104,2086.5,2085.9,0.97139996]
[1770657794923,9.93520104,2086.9,2086.0,0.73152996]
[1770657796327,9.93520104,2086.9,2086.1,0.23985]
[1770657796528,9.93520104,2086.9,2086.2,0.73251571]
[1770657796730,9.79446953,2087.1,2086.4,0.71798597]
[1770657796927,9.79446953,2087.1,2086.6,0.71798597]
[1770657797331,0.00486107,2087.1,2086.6,0.71798597]
[1770657797927,9.83210035,2087.1,2086.6,0.71798597]
[1770657798632,9.83210035,2087.1,2086.5,0.2398]
[1770657798833,9.83210035,2087.1,2086.5,0.84050381]
[1770657799028,9.83210035,2087.1,2086.6,0.60070381]
[1770657799633,9.83210035,2087.1,2086.5,0.2398]
[1770657800130,9.83210035,2087.1,2086.6,0.61592597]
[1770657802637,9.83210035,2087.1,2086.5,0.2398]
[1770657803332,9.83210035,2087.1,2086.5,0.85672889]
[1770657803733,9.83210035,2087.1,2086.6,0.60445783]
[1770657805337,9.83210035,2087.1,2086.5,0.2398]
[1770657805832,9.83210035,2087.1,2086.1,0.00153608]
[1770657806132,9.83210035,2087.1,2085.7,0.8197884]
[1770657806330,9.83210035,2087.1,2085.9,0.82122742]
[1770657807335,9.83210035,2087.1,2085.8,0.23988]
[1770657807636,9.83210035,2087.1,2085.8,0.88846373]
[1770657807830,9.83210035,2087.1,2085.9,0.64858373]
[1770657808230,9.83210035,2087.1,2085.5,7.5853546]
[1770657808434,9.83210035,2087.1,2085.5,0.65044056]
[1770657808730,9.74600923,2086.9,2085.5,0.65044056]
[1770657809633,9.74600923,2086.9,2085.3,0.23993]
[1770657810028,5.89963,2086.4,2084.8,4.14001034]
[1770657810235,5.89963,2086.4,2084.1,8.37342707]
[1770657810236,9.17719621,2085.9,2084.3,0.24006]
[1770657810535,9.17719621,2085.8,2084.3,0.24006]
[1770657810730,9.17719621,2085.8,2084.1,3.66473602]
[1770657810936,9.17719621,2085.8,2084.1,0.29471021]
[1770657812136,9.17719621,2085.8,2084.0,3.40060947]
[1770657812436,9.17719621,2085.6,2084.0,3.40060947]
[1770657812635,9.17719621,2085.6,2083.8,3.62637659]
[1770657812936,9.18238274,2085.6,2083.8,3.62637659]
[1770657813540,9.17719621,2085.4,2083.6,4.01320751]
[1770657813944,9.17719621,2085.4,2083.8,0.24011]
[1770657814333,9.17719621,2085.2,2083.8,3.95631745]
[1770657814935,9.17719621,2085.2,2084.3,3.7187497]
[1770657819847,9.17719621,2085.2,2084.0,3.64788152]
[1770657820551,9.17719621,2085.2,2083.7,3.64962099]
[1770657821052,9.17719621,2084.7,2083.0,0.1]
[1770657821353,9.17719621,2084.7,2083.0,3.73553501]
[1770657821549,9.17719621,2084.5,2083.0,3.73553501]
[1770657821745,9.17719621,2084.5,2083.0,0.1]
[1770657822051,9.17719621,2084.2,2082.4,3.8712193]
[1770657822249,9.17719621,2084.1,2082.4,3.8712193]
[1770657822552,9.18102892,2084.1,2082.4,4.17042553]
[1770657826049,9.82444125,2083.9,2082.4,3.8712193]
[1770657826355,9.82444125,2083.9,2082.4,0.24027]
[1770657826755,9.82444125,2083.9,2082.4,4.04286644]
[1770657826958,9.82444125,2083.7,2082.4,4.04286644]
[1770657828356,9.82444125,2084.0,2082.7,3.82489308]
[1770657828958,9.82827396,2084.1,2083.1,3.81114904]
[1770657830056,9.82827396,2084.1,2082.4,3.88510235]
[1770657830856,9.82827396,2084.1,2082.4,4.12537235]
[1770657834564,9.82827396,2084.1,2082.7,3.83461267]
[1770657834963,9.82827396,2084.1,2082.9,3.83461267]
[1770657835167,9.82827396,2084.1,2083.1,3.83461267]
[1770657835666,9.82827396,2084.1,2083.3,3.87279688]
[1770657838162,9.82827396,2084.1,2082.4,4.14001034]
[1770657838469,9.82827396,2084.1,2082.7,4.42716099]
[1770657838667,9.82827396,2084.1,2082.8,5.90977]
[1770657838861,9.82827396,2084.1,2083.2,0.24018]
[1770657839963,9.82827396,2084.1,2082.9,4.30127152]
[1770657841258,9.82827396,2084.1,2082.5,4.14001034]
[1770657841459,9.82444125,2084.0,2082.6,4.5017965]
[1770657841864,9.82444125,2083.8,2082.6,4.5017965]
[1770657842066,9.82444125,2083.8,2082.3,0.30066888]
[1770657842067,9.82444125,2083.8,2082.7,4.7420365]
[1770657850271,9.82444125,2083.8,2082.8,4.49385013]
[1770657851371,9.82444125,2083.8,2083.0,4.52899357]
[1770657851675,9.82444125,2083.8,2082.8,4.51625446]
[1770657851870,9.82444125,2083.8,2083.0,4.51625446]
[1770657853480,9.82444125,2083.8,2083.1,8.67557313]
[1770657853675,9.82444125,2083.8,2083.1,4.4312941]
[1770657853877,0.00383271,2084.1,2083.1,4.4312941]
[1770657853878,9.82444125,2084.0,2083.3,4.4312941]
[1770657856371,9.08127564,2084.1,2083.5,4.41293772]
[1770657858181,9.08127564,2084.1,2083.4,0.24016]
[1770657860285,9.08127564,2084.1,2083.4,4.47750347]
[1770657860488,9.08127564,2084.1,2083.4,0.24016]
[1770657861480,9.08127564,2084.1,2083.4,4.47948388]
[1770657862988,9.08127564,2084.1,2083.5,4.21455028]
[1770657863287,9.08127564,2084.1,2083.7,4.20670276]
[1770657863677,9.08127564,2084.1,2083.6,0.24014]
[1770657863986,9.08127564,2084.1,2083.4,4.19444784]
[1770657864579,9.08127564,2084.1,2083.6,0.24014]
[1770657864778,9.08127564,2084.1,2083.6,4.4232381]
[1770657865788,9.08127564,2084.1,2083.4,3.36421146]
[1770657865989,9.08127564,2084.1,2083.5,4.23782552]
[1770657866284,9.22284469,2084.6,2083.7,3.35995034]
[1770657866490,9.22284469,2084.4,2083.7,3.35995034]
[1770657866688,9.22284469,2084.4,2083.4,4.14001034]
[1770657866882,9.22284469,2084.2,2083.3,3.65783442]
[1770657867086,9.22284469,2084.2,2083.4,7.65587742]
[1770657867285,9.22284469,2084.0,2083.4,3.42149713]
[1770657867787,8.72494469,2083.8,2083.4,3.42149713]
[1770657867990,9.22284469,2084.0,2083.5,4.04969306]
[1770657868180,9.2266774,2084.0,2083.5,4.04969306]
[1770657869192,9.2266774,2084.0,2083.5,0.24015]
[1770657871095,9.2266774,2084.0,2083.5,4.04452048]
[1770657871283,9.2266774,2084.0,2083.5,0.24015]
[1770657871891,9.22284469,2084.0,2083.5,0.24015]
[1770657872090,9.22284469,2083.8,2083.5,0.24015]
[1770657872494,9.2266774,2083.8,2083.5,0.24015]
[1770657872803,9.2266774,2083.8,2083.1,2.7895601]
[1770657873095,9.2266774,2083.8,2083.0,3.0297601]
[1770657873296,9.2266774,2083.8,2083.0,7.28447926]
[1770657874094,9.2266774,2083.8,2082.9,2.7895601]
[1770657874295,9.2266774,2083.8,2082.7,2.7895601]
[1770657874496,9.2266774,2083.8,2082.8,3.74764983]
[1770657874799,9.22284469,2083.6,2082.8,3.74764983]
[1770657875397,9.22284469,2083.4,2082.8,3.74764983]
[1770657876003,9.22284469,2083.2,2082.8,3.74764983]
[1770657876404,9.22284469,2084.1,2082.8,3.74764983]
[1770657876604,9.22284469,2083.4,2082.8,3.74764983]
[1770657876807,9.22284469,2083.4,2082.6,2.7895601]
[1770657876996,40.8,2084.0,2082.6,7.0516385]
[1770657876997,9.22284469,2083.2,2082.6,7.0516385]
[1770657877399,9.22284469,2083.2,2082.5,6.7854478]
[1770657877599,9.22284469,2083.0,2082.6,3.74515468]
[1770657878004,9.22284469,2083.0,2082.5,2.7895601]
[1770657878209,9.22284469,2083.0,2082.0,6.77502478]
[1770657878404,9.22284469,2082.8,2082.1,4.26406426]
[1770657878703,9.22284469,2082.8,2082.0,0.24031]
[1770657878904,9.22284469,2082.6,2082.0,4.4609578]
[1770657879107,9.22778625,2082.6,2082.0,4.4609578]
[1770657879306,9.22284469,2082.4,2082.0,10.68265192]
[1770657879507,9.2266774,2082.5,2082.0,6.46200412]
[1770657879704,9.2266774,2082.5,2082.0,0.24031]
[1770657880095,9.22284469,2082.5,2082.0,0.24031]
[1770657880307,9.2266774,2082.5,2082.0,0.24031]
[1770657880805,9.2266774,2082.5,2081.7,6.3920047]
[1770657881006,9.2266774,2082.5,2081.8,4.21563934]
[1770657881307,9.2266774,2082.5,2081.7,6.3920047]
[1770657884107,0.00494156,2082.6,2081.9,6.40940159]
[1770657884312,9.22284469,2082.9,2082.0,6.41051572]
[1770657884514,9.22284469,2082.9,2082.0,6.65083572]
[1770657885210,9.22747638,2082.9,2082.0,6.65546144]
[1770657889706,9.22747638,2082.9,2082.0,7.05957247]
[1770657892115,9.22747638,2082.9,2082.0,0.24494572]
[1770657893213,9.22747638,2082.9,2082.0,7.25869446]
[1770657893607,9.36143765,2083.2,2082.5,6.99441423]
[1770657893904,9.36143765,2083.2,2082.4,0.24027]
[1770657894808,9.36634578,2083.2,2082.4,0.24027]
[1770657897008,9.36634578,2083.2,2082.0,7.40323797]
[1770657898522,9.36634578,2083.2,2082.2,7.40105788]
[1770657899415,9.36634578,2083.2,2082.3,7.6407743]
[1770657900814,9.36634578,2083.2,2082.3,7.37747286]
[1770657901912,9.36634578,2083.2,2082.2,0.2403]
[1770657902115,9.36634578,2083.2,2082.2,7.55781899]
[1770657904314,9.36634578,2083.2,2082.0,0.00462572]
[1770657904514,9.36634578,2083.2,2081.8,0.24034]
[1770657905014,2.76663325,2082.3,2080.9,9.33927983]
[1770657905310,40.8,2082.2,2080.9,9.33927983]
[1770657905509,9.36143765,2082.1,2080.9,9.34345893]
[1770657908221,9.36143765,2082.1,2081.0,9.57971983]
[1770657909514,9.36143765,2082.1,2081.0,8.82015983]
[1770657909711,9.36143765,2082.1,2081.0,0.24044]
[1770657910422,9.36143765,2081.8,2080.5,9.57976983]
[1770657911018,9.36143765,2081.6,2080.5,9.57976983]
[1770657911423,9.36560476,2081.6,2080.5,9.57976983]
[1770657912019,9.36560476,2081.6,2080.5,0.24049]
[1770657913022,9.36560476,2081.6,2080.5,9.57976983]
[1770657913323,9.36143765,2081.4,2079.9,9.33927983]
[1770657913518,9.36143765,2081.4,2079.9,9.3428772]
[1770657914621,9.36143765,2081.4,2080.1,9.33927983]
[1770657916423,0.00416711,2081.6,2080.6,9.76231024]
[1770657917324,9.38432909,2081.6,2080.6,9.76231024]
[1770657919331,0.00416711,2081.6,2080.6,9.76231024]
[1770657919625,9.64496837,2081.6,2080.8,9.29447261]
[1770657919928,9.64080126,2082.3,2081.2,9.29442261]
[1770657920226,9.64080126,2082.3,2080.4,5.91643]
[1770657920227,9.64080126,2082.3,2081.0,9.05401261]
[1770657920427,9.64080126,2081.9,2080.3,9.05401261]
[1770657921022,9.64420932,2081.9,2080.3,9.05401261]
[1770657921421,9.64420932,2081.9,2080.5,9.05401261]
[1770657921626,9.64080126,2081.7,2080.3,9.05401261]
[1770657922627,9.64080126,2081.7,2080.3,9.29453261]
[1770657923523,9.64080126,2081.7,2080.3,0.24052]
[1770657923729,9.64080126,2081.7,2080.1,9.36120709]
[1770657924127,9.64080126,2081.5,2080.1,9.36120709]
[1770657924523,9.64080126,2081.5,2080.3,9.29453261]
[1770657924925,9.64080126,2081.4,2080.0,9.05401261]
[1770657925526,9.88119126,2081.4,2079.9,0.00359737]
[1770657925734,9.64080126,2081.1,2079.9,0.00359737]
[1770657926321,9.64080126,2081.1,2079.4,9.05401261]
[1770657926831,9.64080126,2080.9,2079.4,9.05401261]
[1770657927127,9.64080126,2080.9,2079.3,0.24063]
[1770657927331,9.64080126,2080.7,2079.3,9.05858239]
[1770657927532,9.64080126,2080.7,2079.5,9.05401261]
[1770657927927,9.64080126,2080.7,2079.4,0.24062]
[1770657929135,9.64080126,2080.7,2079.4,9.29463261]
[1770657929524,9.64080126,2080.5,2079.4,9.29463261]
[1770657929725,9.64080126,2080.5,2079.4,0.24062]
[1770657929931,9.64080126,2080.5,2079.3,0.00456978]
[1770657930131,9.64080126,2080.5,2079.2,9.05401261]
[1770657930929,9.64080126,2080.5,2079.3,0.24063]
[1770657931134,9.64080126,2080.5,2079.3,9.29728639]
[1770657932232,9.64080126,2080.5,2079.3,8.29728639]
[1770657932637,9.64080126,2080.5,2079.3,0.24327378]
[1770657933036,9.64080126,2080.3,2078.8,9.29469261]
[1770657933232,9.64080126,2080.3,2078.1,5.92313]
[1770657933233,9.64080126,2080.1,2078.4,9.36401409]
[1770657933432,9.64080126,2080.1,2078.4,9.05401261]
[1770657933631,9.64080126,2079.8,2078.2,9.29476261]
[1770657933837,9.64080126,2079.6,2078.2,9.29476261]
[1770657934034,9.64447921,2079.6,2078.2,9.29476261]
[1770657934231,9.64447921,2079.6,2078.2,0.24075]
[1770657935031,9.64080126,2079.4,2078.2,0.24075]
[1770657935233,9.64080126,2079.4,2078.2,9.29476261]
[1770657935640,9.64080126,2079.4,2078.2,0.24075]
[1770657935841,9.64080126,2079.4,2077.9,9.05401261]
[1770657936548,9.64080126,2079.4,2078.2,9.29476261]
[1770657936843,9.64080126,2079.2,2078.2,9.29476261]
[1770657937147,9.64080126,2079.4,2078.5,9.05401261]
[1770657940146,9.64080126,2079.4,2078.0,9.05401261]
[1770657940749,9.64447921,2079.6,2078.2,9.05401261]
[1770657942850,9.64447921,2079.6,2078.2,8.05401261]
[1770657943949,9.64447921,2079.6,2078.4,9.05401261]
[1770657946759,9.26156524,2079.4,2078.4,9.05401261]
[1770657946945,9.26156524,2079.4,2078.6,9.23892727]
[1770657947452,0.00367795,2079.6,2079.0,9.23892727]
[1770657948051,9.26524319,2079.6,2079.0,9.23892727]
[1770657948943,9.26524319,2079.6,2078.5,9.23892727]
[1770657949341,9.26524319,2079.6,2078.7,9.23892727]
[1770657950244,0.00367795,2079.6,2078.7,9.23892727]
[1770657951052,9.26524319,2079.6,2078.7,9.23892727]
[1770657951253,0.00367795,2079.6,2078.9,9.23892727]
[1770657952049,9.26524319,2079.6,2078.9,9.23892727]
[1770657953350,9.26524319,2079.6,2078.9,8.23892727]
[1770657955049,0.00367795,2079.6,2078.9,8.23892727]
[1770657955453,9.26524319,2079.6,2078.9,8.23892727]
[1770657956152,9.26524319,2079.6,2078.6,9.23892727]
[1770657957152,9.26524319,2079.6,2078.3,0.24074]
[1770657957153,9.26524319,2079.6,2078.4,9.23892727]
[1770657957350,9.26524319,2079.6,2078.2,9.23892727]
[1770657959458,9.26524319,2079.6,2078.5,9.23892727]
[1770657960153,9.26524319,2079.6,2078.3,9.23892727]
[1770657960457,9.26524319,2079.6,2078.3,9.47966727]
[1770657960661,9.26524319,2079.6,2078.7,9.23892727]